Cogmind - Beta 11.1 @@@ ROGUE MODE // 2022.05.05 @ 22:37:42 Player: IceNine Result: Destroyed self with Grenade Launcher Performance ------------- Evolutions (1) 500 Regions Visited (3) 600 Robots Destroyed (21) 105 Value Destroyed (466) 466 Prototype IDs (4) 80 Alien Tech Used (0) 0 Bonus (116) 116 TOTAL SCORE: 1867 Bonus ------- Follower Combat Kills 116 Cogmind --------- Core Integrity 0/400 Matter 266/300 Energy 100/100 System Corruption 4% Temperature Cool (0) Movement Core (250) Ox4 Location -9/Materials Parts ------- > --- POWER (1) -------- (None) > --- PROPULSION (3) --- (None) > --- UTILITY (3) ------ Medium Storage Unit Visual Processing Unit > --- WEAPON (2) ------- Grenade Launcher > --- INVENTORY (10) --- Improved Ion Engine Fission Core Small Storage Unit Medium Matter Pod (100) ECM Suite Particle Gun Peak State ------------ > --- POWER ------------ Ion Engine > --- PROPULSION ------- Aluminum Leg Aluminum Leg Aluminum Leg > --- UTILITY ---------- Medium Storage Unit Visual Processing Unit Sensor Array > --- WEAPON ----------- Beam Rifle Mining Laser > --- INVENTORY -------- Ion Engine Improved Ion Engine Fission Core Aluminum Leg Small Storage Unit Medium Matter Pod ECM Suite Light Assault Rifle Light Assault Rifle Grenade Launcher [Rating: 12] Favorites ----------- Power Ion Engine Engine Ion Engine Propulsion Aluminum Leg Treads Light Treads Leg Aluminum Leg Utility Small Storage Unit Device Tractor Beam Storage Small Storage Unit Processor Visual Processing Unit Weapon Medium Laser Energy Gun Medium Laser Ballistic Gun Light Assault Rifle Launcher Grenade Launcher Special Weapon Mining Laser Build | -11 -10 -10 -9 ------- Run | Scr Mat Min Mat Slots Evolved 2 | . . . 2 Power . | . . . . Propulsion 1 | . . . 1 Utility 1 | . . . 1 Weapon . | . . . . Parts Attached 30 | 5 11 3 11 Power 4 | 1 2 . 1 Engine 4 | 1 2 . 1 Core . | . . . . Reactor . | . . . . Propulsion 10 | 2 4 . 4 Treads 1 | . . . 1 Leg 9 | 2 4 . 3 Wheel . | . . . . Hover . | . . . . Flight . | . . . . Utility 7 | . 3 1 3 Device 2 | . 1 . 1 Storage 4 | . 1 1 2 Processor 1 | . 1 . . Hackware . | . . . . Protection . | . . . . Artifact . | . . . . Weapon 9 | 2 2 2 3 Energy Gun 4 | 2 1 . 1 Energy Cannon . | . . . . Ballistic Gun 2 | . 1 . 1 Ballistic Cannon . | . . . . Launcher 2 | . . 1 1 Special Weapon 1 | . . 1 . Impact Weapon . | . . . . Slashing Weapon . | . . . . Piercing Weapon . | . . . . Special Melee Weapon . | . . . . Unidentified Prototypes . | . . . . Parts Lost 11 | . 2 . 9 Power 3 | . 1 . 2 Propulsion 4 | . . . 4 Utility 1 | . . . 1 Weapon 3 | . 1 . 2 Highest Loss Streak 9 | . 1 . 9 To Critical Strikes . | . . . . Average Slot Usage (%) 93 | . 95 100 82 Engine 12 | . 13 14 9 Leg 26 | . 28 28 21 Device 5 | . 4 . 9 Storage 11 | . 11 14 11 Processor 8 | . 7 14 11 Energy Gun 19 | . 24 9 1 Ballistic Gun 2 | . 3 2 1 Launcher 1 | . . 11 6 Special Weapon 1 | . . 4 7 Naked Turns . | . . . . Heaviest Build 21 | 6 16 21 20 Greatest Support 30 | 20 20 20 30 Greatest Overweight (x) 5 | . . 1 5 Average Overweight (x) . | . . . . Largest Inventory Capacity 25 | 5 8 10 25 Average Capacity 7 | 5 7 9 10 Most Carried 10 | 5 8 9 10 Average Carried 6 | 3 6 8 8 Final Capacity 10 | 5 8 10 10 Final Carried 9 | 4 7 9 6 Class Distribution -------------------- 59% | Scavenger-Mutant 40% | Mutant Dominant Class ---------------- Scavenger-Mutant | -10/Materials Scavenger-Mutant | -10/Mines Scavenger-Mutant | -9/Materials Resources | -11 -10 -10 -9 ----------- Run | Scr Mat Min Mat Matter Collected 778 | 202 407 73 96 Remotely 81 | . 81 . . Salvage Created 798 | . 649 2 147 Parts 39 | . 30 . 9 Haulers Intercepted . | . . . . Recyclers Shooed 8 | 1 5 . 2 Parts Field Recycled . | . . . . Retrieved Matter . | . . . . Parts Self-Destructed . | . . . . Prevented . | . . . . Kills | -11 -10 -10 -9 ------- Run | Scr Mat Min Mat Combat Hostiles Destroyed 19 | . 11 5 3 Melee 1 | . . . 1 Guns 12 | . 10 2 . AOE 5 | . . 3 2 Classes Destroyed 7 | . 4 1 2 Recycler 3 | . 3 . . Watcher 4 | . 3 . 1 Swarmer 5 | . 5 . . Grunt 7 | . 6 . 1 Brawler 1 | . . . 1 Duelist 1 | . . . 1 Assembled 5 | . . 5 . Best Kill Streak 5 | . 4 5 3 Combat Bots Only 5 | . 3 5 2 Max Kills in Single Turn 3 | . 1 2 3 Gunslinging . | . . . . Exploded 2 | . . 2 2 Melee 1 | . . . 1 Uniques/NPCs Destroyed . | . . . . Combat | -11 -10 -10 -9 -------- Run | Scr Mat Min Mat Damage Taken 1737 | . 541 110 1086 Core 502 | . 83 16 403 Absorbed by Shields . | . . . . Core Remaining (%) 80 | 100 . 60 . Volleys Fired 82 | . 59 5 18 Largest 2 | . 2 2 2 Hottest 156 | . 115 95 156 Shots Fired 147 | . 115 10 22 Gun 135 | . 115 5 15 Cannon . | . . . . Launcher 7 | . . 5 2 Special 5 | . . . 5 Kinetic 11 | . 1 . 10 Thermal 129 | . 114 5 10 Explosive 7 | . . 5 2 Electromagnetic . | . . . . Robot Hit Streak 10 | . 10 5 4 Robot Miss Streak 5 | . 5 2 3 Penetration Max . | . . . . Secondary Targets 2 | . 2 . . Max Gunslinging Chain 1 | . 1 . . Shots Hit Robots 82 | . 64 6 12 Core Hits 50 | 2 24 10 14 Critical Kills . | . . . . Critical Parts Destroyed . | . . . . Critical Strikes 6 | . 6 . . Burn 6 | . 6 . . Melee Attacks . | . . . . Impact . | . . . . Slashing . | . . . . Piercing . | . . . . Sneak Attacks . | . . . . Combat Hostiles . | . . . . Follow-up Attacks . | . . . . Damage Inflicted 1469 | 24 811 226 408 Guns 975 | . 806 63 106 Cannons . | . . . . Explosions 416 | . . 159 257 Melee . | . . . . Ramming 54 | 24 5 4 21 Kinetic 63 | . . . 63 Thermal 936 | . 806 63 67 Explosive 416 | . . 159 257 Electromagnetic . | . . . . Impact . | . . . . Slashing . | . . . . Piercing . | . . . . Highest Corruption 4 | . 4 4 4 Average Corruption 3 | . 3 4 4 Corruption Purged . | . . . . Corruption Blocked . | . . . . Effects 9 | . 7 1 1 Message Errors 4 | . 4 . . Matter Fused 2 | . 1 . 1 Heat Flow Errors 1 | . 1 . . Energy Discharges 1 | . 1 . . Data Loss (major) 1 | . . 1 . Overload Shots . | . . . . Overflow Damage 2 | . . 2 . Projectiles . | . . . . Explosions 2 | . . 2 . Melee . | . . . . Knockbacks . | . . . . Impact . | . . . . Kinetic . | . . . . Secondary . | . . . . Self-Inflicted Damage 67 | . . 24 43 Shots 3 | . . 1 2 Rammed 5 | . . . 5 Targets Rammed 29 | 14 2 1 12 Kicked 24 | 14 2 1 7 Crushed . | . . . . Highest Temperature 315 | . 315 165 162 Average Temperature 97 | . 105 82 58 Received Heat Transfer 431 | . 159 20 252 Effects 4 | . 4 . . Interference 3 | . 3 . . Damage (minor) 1 | . 1 . . Siege Activations . | . . . . Robots Corrupted . | . . . . Combat Hostiles . | . . . . Parts Fried . | . . . . Impact Corruptions . | . . . . Robots Melted 1 | . 1 . . Combat Hostiles 1 | . 1 . . Parts Melted 5 | . 5 . . Heat Transferred 2868 | . 2559 148 161 Parts Sabotaged . | . . . . Parts Stolen . | . . . . Parts Stripped . | . . . . Power Chain Reactions . | . . . . Missiles Intercepted . | . . . . Alert | -11 -10 -10 -9 ------- Run | Scr Mat Min Mat Peak Influence 236 | . 236 39 170 Initial 14 | . . 6 14 Average 79 | . 89 31 78 Maximum Alert Level 1 | . 1 . . Low Security (%) 98 | 100 97 100 100 Level 1 1 | . 2 . . Level 2 . | . . . . Level 3 . | . . . . Level 4 . | . . . . Level 5 . | . . . . High Security . | . . . . Max Security . | . . . . Squads Dispatched 4 | . 3 . 1 Investigation 4 | . 3 . 1 Extermination . | . . . . Reinforcement . | . . . . Assault . | . . . . Garrison . | . . . . Intercept . | . . . . Searches Triggered . | . . . . Construction Impeded . | . . . . Haulers Reinforced . | . . . . Active Scanning Responses . | . . . . Cargo Convoy Interrupts . | . . . . Stealth | -11 -10 -10 -9 --------- Run | Scr Mat Min Mat Distress Signals 4 | . 1 . 3 Communications Jammed . | . . . . Distress Signals . | . . . . Times Spotted 59 | . 22 20 17 Peak Tracking Total 20 | . 4 20 11 Tactical Retreats . | . . . . Traps | -11 -10 -10 -9 ------- Run | Scr Mat Min Mat Traps Triggered 4 | . 4 . . Indirectly . | . . . . Trap Hack Attempts . | . . . . Triggered . | . . . . Disarmed . | . . . . Reprogrammed . | . . . . Reused . | . . . . Traps Extracted . | . . . . Installed . | . . . . Triggered . | . . . . Machines | -11 -10 -10 -9 ---------- Run | Scr Mat Min Mat Machines Disabled . | . . . . Max in Single Turn . | . . . . Machines Sabotaged . | . . . . Garrisons Compromised . | . . . . Overloaded Fab Kills . | . . . . Hacking | -11 -10 -10 -9 --------- Run | Scr Mat Min Mat Machines Accessed 11 | . 8 . 3 Terminals 9 | . 6 . 3 Fabricators . | . . . . Repair Stations . | . . . . Recycling Units 2 | . 2 . . Scanalyzers . | . . . . Garrison Access . | . . . . Total Hacks 37 | . 26 . 11 Successful 26 | . 19 . 7 Failed 11 | . 7 . 4 Catastrophic . | . . . . Database Lockouts . | . . . . Manual 1 | . . . 1 Terminals 26 | . 15 . 11 Fabricators . | . . . . Repair Stations . | . . . . Recycling Units 11 | . 11 . . Scanalyzers . | . . . . Garrison Access . | . . . . Terminal Hacks 18 | . 11 . 7 Record 6 | . . . 6 Robot Analysis 1 | . 1 . . Prototype ID Bank 2 | . 2 . . Alert Level 1 | . 1 . . Maintenance Status 1 | . 1 . . Security Status 1 | . 1 . . Hauler Manifests 3 | . 2 . 1 Registered Components 1 | . 1 . . Registered Prototypes 1 | . 1 . . Zone Layout 1 | . 1 . . Fabricator Hacks . | . . . . Repair Station Hacks . | . . . . Recycling Unit Hacks 8 | . 8 . . Recycle Component 2 | . 2 . . Process 2 | . 2 . . Report Inventory 2 | . 2 . . Retrieve Components 2 | . 2 . . Scanalyzer . | . . . . Garrison Access Hacks . | . . . . Unauthorized Hacks . | . . . . Terminals . | . . . . Fabricators . | . . . . Repair Stations . | . . . . Recycling Units . | . . . . Scanalyzers . | . . . . Garrison Access . | . . . . Data Cores Recovered . | . . . . Used . | . . . . Hacking Detections 11 | . 8 . 3 Full Trace Events 4 | . 2 . 2 Feedback Events . | . . . . Feedback Blocked . | . . . . Robot Schematics Acquired . | . . . . Robots Built . | . . . . Authchips . | . . . . Time . | . . . . Total Robot Build Rating . | . . . . Part Schematics Acquired . | . . . . Parts Built . | . . . . Authchips . | . . . . Time . | . . . . Total Part Build Rating . | . . . . Parts Repaired . | . . . . Time . | . . . . Parts Recycled 2 | . 2 . . Recycled Matter 267 | . 267 . . Retrieved Matter . | . . . . Retrieved Components 11 | . 11 . . Parts Scanalyzed . | . . . . Part Schematics Acquired . | . . . . Parts Damaged . | . . . . Bothacking | -11 -10 -10 -9 ------------ Run | Scr Mat Min Mat Used RIF Installer . | . . . . Robots Hacked . | . . . . Non-combat . | . . . . Combat . | . . . . Robot Hacks Applied . | . . . . Relay Couplers Released . | . . . . Fabnet Peak Effective % . | . . . . Robots Rewired . | . . . . Allies Hacked . | . . . . Hacks Repelled . | . . . . Allies | -11 -10 -10 -9 -------- Run | Scr Mat Min Mat Total Allies 1 | . . 1 . Largest Group 1 | . . 1 1 Highest-Rated Group 31 | . . 31 31 Highest-Rated Ally 31 | . . 31 31 Total Orders . | . . . . Ally Attacks 18 | . . . 18 Total Damage 233 | . . . 233 Kills 4 | . . . 4 Allies Corrupted . | . . . . Allies Melted . | . . . . Intel | -11 -10 -10 -9 ------- Run | Scr Mat Min Mat Robot Analysis Total 1 | . 1 . . Derelict Logs Recovered . | . . . . Drone Launches . | . . . . Drone Recoveries . | . . . . Exploration | -11 -10 -10 -9 ------------- Run | Scr Mat Min Mat Turns Passed 1827 | 88 1319 125 295 Spaces Moved 1170 | 52 893 73 152 Core 20 | 9 . . 11 Treads . | . . . . Legs 1150 | 43 893 73 141 Wheels . | . . . . Hover . | . . . . Flight . | . . . . Fastest Speed 50 | 50 120 120 120 Average Speed 121 | 107 120 133 130 Slowest Speed 300 | 120 120 190 300 Overloaded Moves . | . . . . Propulsion Burnouts . | . . . . Robots Hopped . | . . . . Cave-ins Triggered . | . . . . Exploration Rate (%) 25 | 3 69 16 15 Regions Visited 3 Branch Regions 1 Pre-discovered Areas . | . . . . Known Exits Taken . | . . . . Unknown Exits Taken 3 | 1 1 1 . Scrap Searched 1 | . . 1 . Spaces Dug . | . . . . Terrain Destroyed 29 | . . 18 11 Melee . | . . . . Projectile 1 | . . . 1 AOE 28 | . . 18 10 Terrain Rammed . | . . . . Walls Destroyed . | . . . . Machines Disabled . | . . . . Actions | -11 -10 -10 -9 --------- Run | Scr Mat Min Mat Total 1406 | 81 1026 90 209 Wait 35 | . 33 1 1 Move 1167 | 51 892 72 152 Hop . | . . . . Pick Up 43 | 10 19 5 9 Fast Attach . | . . . . Attach 15 | 5 4 . 6 Detach . | . . . . Swap 15 | . 7 3 5 Drop 20 | 1 10 3 6 Fire 82 | . 59 5 18 Melee . | . . . . Ram 5 | . . . 5 Kick 24 | 14 2 1 7 Crush . | . . . . Escape Stasis . | . . . . Rewire . | . . . . Trap . | . . . . Miscellaneous . | . . . . Route ------- -11/Scrapyard -10/Materials (discovered 4 exits: *Mat x2 / [*Min x2]) -10/Mines -9/Materials History --------- Turn | Location | Event 11 | -11/Scrapyard | Discovered new exit (range 16) 89 | -11/Scrapyard | Entered Materials 308 | -10/Materials | Build established: Mutant 436 | -10/Materials | Discovered new exit (range 8) 651 | -10/Materials | Discovered new exit (range 14) 978 | -10/Materials | Build established: Scavenger-Mutant 979 | -10/Materials | Discovered new exit (range 17) 1350 | -10/Materials | Discovered new exit (range 9) 1408 | -10/Materials | Entered Mines 1409 | -10/Mines | Assembled infested the area 1414 | -10/Mines | Assisted by a Guerilla fighting off Assembled 1438 | -10/Mines | Met a Derelict bent on vengeance 1491 | -10/Mines | Received a Mining Laser from a helpful Derelict 1492 | -10/Mines | Discovered new exit (range 13) 1533 | -10/Mines | Entered Materials 1533 | -9/Materials | Accompanied by 1 ally 1533 | -9/Materials | Evolved 2 slots: Propulsion x1, Utility x1 1796 | -9/Materials | Core integrity fell below 50% 1814 | -9/Materials | Core integrity fell below 20% 1828 | -9/Materials | Destroyed self with Grenade Launcher Last Messages --------------- 01791_ Aluminum Leg destroyed. 01792_ Slammed into B-36 Bruiser. 01792_ Destabilizing: System interference. 01792_ Sensor Array temporarily disabled. 01793_ K-01 Serf collects debris. 01795_ Slammed into B-36 Bruiser. 01798_ Sensor Array destroyed. 01798_ System corrupted by crushing effect (+4). 01798_ Slammed into G-34 Mercenary. 01799_ Ion Engine destroyed. 01800_ R-06 Scavenger collects Beam Rifle. 01801_ Slammed into G-34 Mercenary. 01810_ R-06 Scavenger collects Lgt. Treads. 01811_ W-16 Scout sends out distress signal. 01814_ K-01 Serf cleans the Scanalyzer. 01815_ System corrupted: Matter fused (-7). 01815_ R-06 Scavenger collects Carbon-fiber Leg. 01817_ Slammed into A-02 Transporter. 01826_ B-36 Bruiser destroyed. 01826_ W-16 Scout destroyed. Map ----- +----------------------------------------------------+ | ?????????????????????????????????????????????????? | | ?????????????????????????????????????????????????? | | ?????????????????????????????????????????????????? | | ?????????????????????????????????????????????????? | | ?????????????????????????????????????????????????? | | ?????????????????????????????????????????????????? | | ?????????????????????????????????????????????????? | | ????????????????????/#???????????????????????????? | | ???????????????????? ??????????????????????????? | | ????????????????????S ??????????????????????????? | | ????????????????????"" ??????????????????????????? | | ?????????????????????" !?????#######?????????????? | | ?????????????????????? ?##### ^ ##????????????? | | ????????????????????###+## # """! #????????????? | | ????????????????????? + + """%##????????????? | | ??????????????????????# #^"S%%#?????????????? | | ??????????????????????# #^"""%#?????????????? | | ??????????????????????# # ""%#?????????????? | | ??????????????????????# Y # %%%#?????????????? | | ??????????????????????# g !g #+####????????????? | | ??????????????????????# *!%% % #????????????? | | ??????????????????????# =%!= #????????????? | | ??????????????????????# g ###### #??????#?????? | | ??????????????????????# =%g ##??# #???? #?????? | | ??????????????????????#r #??#%#?? #?????? | | ??????????????????????# @ #####!# """ #?????? | | ??????????????????????# # ## *!+ """ #?????? | | ????????????????????????# ## # """ #?????? | | ????????????????????????# ## #?? #?????? | | ????????????????????????# ## #????###?????? | | ????????????????????????######## #????????????? | | ?????????????????????????####### #????????????? | | ??????????????????????+ #????????????? | | ?????????????????????????####### ########?????? | | ???????????????????????????????# # #?????? | | ???????????????????????????????+ # T #?????? | | ?????????????????????????????? # # #?????? | | ?????????????????????????????? # # #?????? | | ?????????????????????????????#?# + #?????? | | ??????????????????????############# # #?????? | | ??????????????????????# ### ########?????? | | ??????????????????????# # #??????????? | | ??????????????????????# """ """ # #??????????? | | ??????????????????????# """ """ + % ! #??????????? | | ??????????????????????# """ """ # *= #??????????? | | ??????????????????????# # #??????????? | | ??????????????????????# = ## ##??????????? | | ??????????????????????# ## #???????????? | | ??????????????????????############ #???????????? | | ?????????????????????????????????# #???????????? | +----------------------------------------------------+ Best States ------------- Heat Dissipation 28 Energy Generation 10 Energy Capacity 250 Matter Stores 300 Matter Capacity 300 Sight Range 18 Robot Scan Range 14 Terrain Scan Density 10 Evasion (%) 55 Item Schematics ----------------- None Robot Schematics ------------------ None Fabricated ------------ Nothing Alien Tech Used ----------------- None Achievements -------------- Hey, That's Mine! Hunted I Survived The Infestation It's Just You Challenges ------------ None Game ------ Seed GammaMiningMaul Manual? 0 Play Time 00:32:06 Cumulative 3.6 hours Start 2022.05.05 @ 22:02:30 End 2022.05.05 @ 22:37:42 Sessions 1 Manual Loads 0 Difficulty Rogue Special Mode None Game No. 5 Rogue 5 Adventurer 0 Explorer 0 Win Type - Total 0 Types 0/0/0/0/0/0/0/0/0 Lore% 2 Gallery% 6 Achievement% 7 Wizard Run 0 Options --------- ASCII 0 Keyboard 0 Movement Numpad Keybinds 0 Fullscreen 1 Font 20/Terminus Map View 76x50 Tactical HUD 1 Map Filters NONE Filters NONE Steam 1 RUN: b31dd5e5-6d64-423b-8415-5d4d6d7d41ee